bitfinex/quotes_ETHUSD_20250625
["timestamp","ask_amount","ask_price","bid_price","bid_amount"]
[1750877062555,5.31959171,2415.3,2414.8,4.34741108]
[1750877062873,1.85,2415.1,2414.9,4.14090875]
[1750877063155,7.1114,2415.3,2415.0,4.14078674]
[1750877063359,7.1114,2415.3,2414.8,4.34741108]
[1750877063360,1.85,2415.2,2414.9,4.14084599]
[1750877063559,1.85,2415.2,2414.9,4.14090555]
[1750877063756,1.85,2415.2,2415.0,4.14076713]
[1750877065631,1.85,2415.2,2414.9,4.14092014]
[1750877066645,1.85,2415.2,2414.8,4.34743365]
[1750877067464,4.14070561,2415.1,2414.6,4.90601611]
[1750877067764,0.7683,2415.0,2414.7,4.14126897]
[1750877069536,0.7683,2415.0,2414.8,4.14112445]
[1750877069876,0.2064,2415.1,2414.9,4.14095821]
[1750877070841,7.0964,2415.1,2415.0,4.14078674]
[1750877071046,8.9464,2415.1,2415.0,4.14078674]
[1750877071363,0.2064,2415.1,2415.0,4.14078674]
[1750877071572,2.0564,2415.1,2415.0,4.14078674]
[1750877071868,2.0564,2415.1,2414.9,4.14086286]
[1750877072179,2.0564,2415.1,2414.7,4.90072124]
[1750877072674,2.0564,2415.1,2414.8,4.14112429]
[1750877072974,0.2064,2415.1,2414.8,4.14112429]
[1750877073335,1.85,2415.0,2414.7,4.90075937]
[1750877073568,1.85,2415.0,2414.8,4.14112824]
[1750877073841,1.85,2415.0,2414.7,5.41143525]
[1750877074356,1.85,2415.0,2414.6,0.2064]
[1750877074561,1.85,2415.0,2414.6,4.34779964]
[1750877075065,1.85,2415.0,2414.4,0.2068432]
[1750877075066,0.2064,2414.7,2414.4,0.2068432]
[1750877075235,0.2064,2414.7,2414.5,4.1415176]
[1750877075430,1.85,2414.9,2414.6,0.7563]
[1750877075774,1.85,2414.9,2414.7,4.14121051]
[1750877076284,1.85,2414.9,2414.8,4.1411297]
[1750877077135,1.85,2415.0,2414.9,4.14079652]
[1750877077920,1.85,2415.1,2415.0,4.14077336]
[1750877078570,10.2064,2415.3,2415.1,4.14060923]
[1750877078794,1.85,2415.2,2415.1,4.14060923]
[1750877078991,4.13965864,2415.7,2415.1,4.14060923]
[1750877078992,9.929,2416.0,2415.1,1.57286335]
[1750877079182,1.85,2415.4,2415.3,4.14027242]
[1750877079383,1.85,2415.4,2415.2,4.14037262]
[1750877079589,1.85,2415.4,2415.3,4.14027242]
[1750877080383,1.85,2415.6,2415.2,0.8007]
[1750877080715,1.85,2415.7,2415.6,4.13961055]
[1750877080867,9.929,2416.0,2415.9,4.13924417]
[1750877081069,11.779,2416.0,2415.9,4.13924417]
[1750877081790,1.826,2416.1,2415.7,4.13958686]
[1750877081993,1.826,2416.1,2416.0,4.13907284]
[1750877083710,1.826,2416.1,2415.8,4.63337317]
[1750877083711,1.826,2416.1,2415.8,0.49402869]
[1750877083880,1.826,2416.1,2415.8,4.63342591]
[1750877084067,1.826,2416.1,2416.0,4.13907284]
[1750877086308,10.7772,2416.7,2416.1,4.13890153]
[1750877086495,1.826,2416.3,2416.2,4.13873023]
[1750877086699,1.826,2416.3,2415.8,4.63336963]
[1750877086700,1.826,2416.3,2415.8,0.49402869]
[1750877087011,1.826,2416.3,2416.0,4.13906111]
[1750877087787,1.826,2416.3,2415.7,0.7717]
[1750877088092,0.7772,2416.2,2415.8,4.13933001]
[1750877088319,0.7772,2416.2,2415.9,4.13924206]
[1750877088605,0.7772,2416.2,2416.0,4.13906794]
[1750877088997,0.7772,2416.2,2415.9,4.13918113]
[1750877090609,0.9836,2416.2,2415.9,4.13918113]
[1750877092513,0.9836,2416.2,2416.0,4.13906441]
[1750877093611,0.9836,2416.2,2415.7,5.11763522]
[1750877093923,5.1224051,2416.2,2415.7,4.34588545]
[1750877094287,6.864,2416.1,2415.5,0.8325]
[1750877094481,0.2064,2415.7,2415.4,4.13994857]
[1750877094697,2.0314,2415.7,2415.4,4.13994857]
[1750877094991,2.0314,2415.7,2415.4,4.13997164]
[1750877096186,2.0314,2415.7,2415.5,4.13982167]
[1750877096385,2.0314,2415.7,2415.6,4.13975823]
[1750877097496,2.0314,2415.7,2415.5,4.13984334]
[1750877099317,2.0314,2415.7,2415.6,4.13975823]
[1750877099798,2.0314,2415.7,2415.5,4.13986446]
[1750877099998,2.0314,2415.7,2415.6,4.13975823]
[1750877100194,2.0314,2415.7,2415.4,4.14002773]
[1750877100390,2.0314,2415.7,2415.5,4.13989241]
[1750877100792,1.53578626,2415.7,2415.5,4.13989241]
[1750877101121,1.53578626,2415.7,2415.6,4.13975823]
[1750877101491,1.53578626,2415.7,2415.5,4.13982934]
[1750877101691,1.53578626,2415.7,2415.6,4.13975823]
[1750877101889,0.2064,2415.7,2415.6,5.01118126]
[1750877102135,0.759,2416.0,2415.6,5.01118126]
[1750877102136,1.825,2415.9,2415.8,4.13933149]
[1750877102289,0.2064,2416.0,2415.8,4.13933149]
[1750877102505,1.825,2416.2,2416.1,4.13890153]
[1750877103010,1.825,2416.2,2416.0,0.2064]
[1750877103200,5.96382779,2416.2,2415.7,4.13954644]
[1750877103400,5.96382779,2416.2,2415.7,5.33661237]
[1750877103401,0.2064,2416.1,2415.7,5.33661237]
[1750877103709,10.0,2416.4,2416.1,4.13890153]
[1750877103912,2.0314,2416.3,2416.0,4.93722579]
[1750877104217,1.825,2416.3,2416.1,4.13875144]
[1750877104939,1.825,2416.3,2416.2,4.13873023]
[1750877105131,0.2064,2416.5,2416.3,4.13845648]
[1750877105290,1.825,2416.5,2416.2,5.2733122]
[1750877105690,10.0,2416.5,2416.2,1.13463922]
[1750877105921,15.96332951,2416.5,2416.0,4.93718266]
[1750877106130,4.1384133,2416.4,2416.1,0.2064]
[1750877106332,16.16969558,2416.5,2416.1,0.2064]
[1750877106635,2.0314,2416.5,2416.2,4.13863936]
[1750877107597,2.0314,2416.5,2416.1,4.34523441]
[1750877107794,2.0314,2416.5,2416.1,1.13464467]
[1750877108006,1.825,2416.5,2416.4,4.13838768]
[1750877108203,10.1384,2416.8,2416.4,0.8312]
[1750877108403,0.55,2417.6,2416.4,0.8312]
[1750877108404,0.7936,2417.5,2416.8,0.8312]
[1750877108604,0.2064,2417.2,2416.8,4.96881225]
[1750877108839,0.2064,2417.2,2416.8,0.8312]
[1750877109049,0.2064,2417.0,2416.6,4.13793108]
[1750877109207,0.2064,2417.0,2416.6,4.34433108]
[1750877109647,0.2064,2417.0,2416.7,4.13786248]
[1750877110242,0.2064,2417.0,2416.6,4.34435131]
[1750877110410,0.2064,2417.0,2416.6,0.2064]
[1750877110611,0.2064,2417.0,2416.6,1.58690889]
[1750877110908,0.2064,2417.0,2416.7,4.13785615]
[1750877111911,0.2064,2417.0,2416.8,4.13762816]
[1750877112323,0.2064,2417.0,2416.9,4.13753154]
[1750877112542,0.2064,2417.2,2416.7,0.2064]
[1750877112840,1.809,2417.1,2416.7,0.86202951]
[1750877113008,1.809,2417.1,2416.8,4.13756872]
[1750877113536,1.809,2417.1,2417.0,4.13736036]
[1750877114172,1.809,2417.1,2416.8,4.13762437]
[1750877114641,1.809,2417.1,2416.8,4.13764016]
[1750877116066,1.809,2417.1,2417.0,4.13736036]
[1750877116838,1.809,2417.1,2416.9,4.13745437]
[1750877117168,1.809,2417.1,2416.8,4.13762062]
[1750877117758,1.809,2417.1,2416.8,4.13762451]
[1750877118138,1.809,2417.1,2416.7,0.2064]
[1750877118139,2.5888,2417.1,2416.7,0.2064]
[1750877118346,0.27952,2417.0,2416.8,4.13761925]
[1750877118574,1.808,2417.0,2416.9,4.13750528]
[1750877118938,1.808,2417.3,2417.1,4.13718919]
[1750877119143,1.808,2417.3,2417.2,4.13694436]
[1750877119359,0.2064,2417.4,2416.9,0.2064]
[1750877119360,6.15115191,2417.4,2416.9,4.34384082]
[1750877119544,2.0144,2417.4,2417.0,4.13732294]
[1750877119744,2.0144,2417.4,2417.1,4.13710039]
[1750877120060,2.0144,2417.4,2417.0,4.13726678]
[1750877120753,2.0144,2417.4,2417.1,4.13712551]
[1750877121873,2.0144,2417.4,2416.9,0.2064]
[1750877122079,2.0144,2417.4,2416.9,0.72319626]
[1750877122247,2.0144,2417.4,2417.0,4.13727535]
[1750877123068,2.0144,2417.4,2417.1,4.13717312]
[1750877123676,2.0144,2417.4,2417.1,4.13711654]
[1750877123875,2.0144,2417.4,2417.2,4.13698948]
[1750877124592,9.93,2417.7,2417.6,4.13633355]
[1750877124751,11.738,2417.7,2417.6,4.13633355]
[1750877125076,21.738,2417.7,2417.5,4.13649873]
[1750877125577,21.738,2417.7,2417.4,4.13660477]
[1750877126576,21.738,2417.7,2417.6,4.13633355]
[1750877126879,11.738,2417.7,2417.6,4.13633355]
[1750877127175,1.808,2417.7,2417.6,4.13633355]
[1750877127567,1.808,2417.7,2417.6,4.34273355]
[1750877129079,0.7588,2418.1,2417.6,0.2064]
[1750877129280,2.0144,2418.2,2418.1,4.13547826]
[1750877129281,1.808,2418.2,2418.1,4.13547826]
[1750877129457,10.6848,2418.7,2418.3,4.13500348]
[1750877129458,11.808,2418.6,2418.3,4.13500348]
[1750877129663,1.808,2418.6,2418.4,4.13483414]
[1750877130067,11.808,2418.6,2418.4,4.13483414]
[1750877130365,9.926,2418.7,2418.4,0.82700981]
[1750877130552,9.926,2418.7,2418.1,8.62931581]
[1750877130553,14.06053547,2418.7,2418.1,4.13536096]
[1750877130753,14.06053547,2418.7,2418.2,4.13530154]
[1750877131297,9.926,2418.7,2418.2,4.13530154]
[1750877131453,9.926,2418.7,2418.3,4.13500797]
[1750877131648,9.926,2418.7,2418.4,4.13487486]
[1750877131853,9.926,2418.7,2418.5,4.13469144]
[1750877132666,9.926,2418.7,2418.6,4.13462333]
[1750877132985,9.926,2418.7,2418.5,0.82695663]
[1750877133280,9.926,2418.7,2418.4,4.1349283]
[1750877133688,9.926,2418.7,2418.3,4.13503363]
[1750877133891,10.738,2418.7,2418.3,4.13503363]
[1750877134057,10.738,2418.7,2418.4,4.1349471]
[1750877134778,10.738,2418.7,2418.4,4.13496526]
[1750877135179,10.738,2418.7,2418.4,5.03715515]
[1750877135562,10.738,2418.7,2418.5,4.13470233]
[1750877136292,10.738,2418.7,2418.4,5.03708337]
[1750877136586,10.738,2418.7,2417.4,4.59588979]
[1750877136587,14.87247796,2418.7,2418.1,4.13547826]
[1750877136791,10.738,2418.7,2418.1,4.13547826]
[1750877137158,10.738,2418.7,2418.2,4.13530725]
[1750877137358,14.87248226,2418.7,2418.2,4.13530725]
[1750877137686,14.87248226,2418.7,2418.6,4.13462333]
[1750877137687,9.926,2418.7,2418.6,4.13462333]
[1750877138078,1.808,2418.8,2418.7,4.13445239]
[1750877138278,1.808,2418.8,2418.6,4.13453076]
[1750877138786,1.808,2418.8,2418.7,4.13445239]
[1750877139569,7.0394,2418.9,2418.8,4.13428146]
[1750877139570,0.2064,2418.9,2418.8,4.13428146]
[1750877140516,0.2064,2419.1,2418.8,0.82687339]
[1750877140661,1.807,2419.2,2419.0,4.13378707]
[1750877141065,1.807,2419.2,2419.1,4.13376875]
[1750877141289,1.807,2419.2,2419.0,4.1339156]
[1750877141483,1.807,2419.2,2418.8,5.93084151]
[1750877141484,1.807,2419.2,2418.9,4.13403907]
[1750877141699,1.807,2419.2,2418.8,5.93087472]
[1750877141991,1.807,2419.2,2418.9,4.13407846]
[1750877142665,1.807,2419.2,2418.8,1.79667339]
[1750877142909,1.807,2419.2,2418.9,4.13401622]
[1750877143490,1.807,2419.2,2418.8,5.93085771]
[1750877143689,1.807,2419.2,2419.0,4.13381308]
[1750877143979,2.0054,2419.3,2419.2,4.13359788]
[1750877144297,2.0054,2419.3,2419.1,4.13369146]
[1750877144610,18.5484,2419.6,2419.4,4.13317732]
[1750877144807,20.5538,2419.6,2419.4,4.13317732]
[1750877144967,19.7264,2419.6,2419.4,4.13317732]
[1750877145163,19.7264,2419.6,2419.3,4.13333024]
[1750877145675,19.7264,2419.6,2419.4,4.13323548]
[1750877145882,8.0064,2419.6,2419.5,4.13308534]
[1750877146197,0.2064,2419.6,2419.5,4.13308534]
[1750877146717,0.2064,2419.6,2419.4,4.133163]
[1750877146998,0.2064,2419.6,2419.5,4.13308534]
[1750877147791,0.2064,2419.6,2419.3,4.13336393]
[1750877147792,0.2064,2419.6,2419.4,4.13317194]
[1750877147975,0.2064,2419.6,2419.5,4.13308534]
[1750877149773,10.0,2419.8,2419.5,4.13308534]
[1750877149973,10.2064,2419.8,2419.4,4.1331664]
[1750877150384,10.2064,2419.8,2419.6,4.13289581]
[1750877150587,0.2064,2419.8,2419.6,4.13289581]
[1750877150903,2.0044,2419.8,2419.6,4.13289581]
[1750877151204,2.0044,2419.8,2419.4,4.13317538]
[1750877151384,2.0044,2419.8,2419.3,4.33975813]
[1750877151385,6.13698024,2419.8,2419.3,4.33976237]
[1750877151589,2.0044,2419.8,2419.3,0.2064]
[1750877151901,6.1369812,2419.8,2419.3,0.80143839]
[1750877152210,4.13300409,2419.6,2419.3,0.80143839]
[1750877152381,4.13317937,2419.5,2419.0,10.96282666]
[1750877152710,4.13331866,2419.4,2419.1,0.2064]
[1750877153017,0.2064,2419.3,2419.1,4.13376188]
[1750877153319,0.2064,2419.3,2418.9,5.14429705]
[1750877153518,0.2064,2419.3,2419.0,4.73095979]
[1750877154416,0.2064,2419.3,2419.1,4.13376209]
[1750877155415,0.2064,2419.3,2419.0,0.59711704]
[1750877155802,0.2064,2419.3,2419.0,4.73098509]
[1750877156201,0.9595,2419.3,2419.0,4.73098509]
[1750877156411,0.9595,2419.3,2419.0,0.59711704]
[1750877156613,0.9595,2419.3,2419.0,4.73103912]
[1750877157322,1.798,2419.2,2418.4,0.7906]
[1750877157493,0.2064,2419.1,2418.6,0.2064]
[1750877157898,0.2064,2419.1,2418.8,4.13427339]
[1750877158114,0.2064,2419.1,2418.9,4.13410922]
[1750877158324,8.627,2419.2,2419.0,4.13393964]
[1750877158495,8.8334,2419.2,2419.0,4.13393964]
[1750877158695,8.8334,2419.2,2418.9,4.13401983]
[1750877158891,2.0044,2419.2,2418.9,5.05825493]
[1750877159525,2.5915,2419.5,2419.1,4.13376875]
[1750877159696,2.5915,2419.5,2419.3,4.13338341]
[1750877159897,1.798,2419.5,2418.9,5.05832238]
[1750877160117,1.798,2419.5,2419.1,4.34008032]
[1750877160327,1.798,2419.5,2419.1,5.27990583]
[1750877160625,4.13334937,2419.4,2418.9,5.05826743]
[1750877160828,1.0163,2419.3,2418.9,12.09366743]
[1750877161000,1.0163,2419.3,2418.9,1.1306351]
[1750877161325,1.0163,2419.3,2419.0,4.13393605]
[1750877161701,5.14974747,2419.3,2418.9,1.1306351]
[1750877162137,4.13360246,2419.2,2418.9,1.1306351]
[1750877162451,4.8956123,2418.9,2418.6,0.2064]
[1750877162614,0.2064,2418.8,2418.4,1.0174]
[1750877162936,0.2064,2418.8,2418.5,4.13478648]
[1750877163430,0.2064,2418.8,2418.4,1.0174]
[1750877163732,0.2064,2418.8,2418.5,4.13479429]
[1750877164046,0.2064,2418.8,2418.6,4.64975241]
[1750877164259,0.2064,2418.8,2418.6,0.51521943]
[1750877164543,0.2064,2418.8,2418.5,4.13471835]
[1750877165028,0.2064,2418.8,2418.6,4.13458928]
[1750877165345,0.2064,2418.8,2418.5,4.13471228]
[1750877165710,0.2064,2418.8,2418.5,4.13477835]
[1750877166112,2.5594,2418.9,2418.4,4.13481195]
[1750877166317,0.2064,2418.7,2418.5,4.13479429]
[1750877166539,0.2064,2418.7,2418.4,4.6501527]
[1750877167342,0.2064,2418.7,2418.4,0.51526201]
[1750877167507,4.34095673,2418.7,2418.3,0.2064]
[1750877167829,4.34095673,2418.7,2418.2,0.20680812]
[1750877167830,0.2064,2418.4,2418.2,0.20680812]
[1750877168030,0.2064,2418.4,2418.2,4.34207717]
[1750877168744,0.2064,2418.4,2418.2,0.20680812]
[1750877168946,1.798,2418.4,2418.2,0.20680812]
[1750877169148,4.94013625,2418.3,2418.2,0.20680812]
[1750877169351,0.2064,2418.2,2417.5,4.13650465]
[1750877169648,0.2064,2417.9,2417.5,4.13650465]
[1750877169812,6.89895457,2417.9,2417.6,0.49125046]
[1750877170014,2.763,2417.9,2417.6,0.49125046]
[1750877170249,6.89893227,2417.9,2417.6,0.49125046]
[1750877170748,2.763,2417.9,2417.4,0.2064]
[1750877170949,0.2064,2417.6,2417.2,4.13698692]
[1750877171146,4.3427781,2417.6,2417.1,4.34357454]
[1750877171447,4.3427781,2417.6,2417.1,0.2064]
[1750877171448,4.895208,2417.5,2417.1,0.2064]
[1750877171646,5.93467961,2417.4,2417.1,0.51165404]
[1750877171849,6.14107961,2417.4,2417.1,0.51165404]
[1750877172050,2.0044,2417.4,2417.1,0.51165404]
[1750877174219,2.0044,2417.4,2417.1,4.64883206]
[1750877174450,2.0044,2417.4,2417.1,4.64875984]
[1750877174752,2.0044,2417.4,2417.1,4.64876733]
[1750877174949,2.0044,2417.4,2417.1,0.51165404]
[1750877175456,2.0044,2417.4,2417.1,4.64884034]
[1750877175745,2.0044,2417.4,2417.1,4.1371863]
[1750877175958,2.0044,2417.4,2416.9,0.2064]
[1750877176141,2.0044,2417.4,2417.2,4.13687635]
[1750877176450,2.0044,2417.4,2417.1,4.13713043]
[1750877178353,2.0044,2417.4,2416.9,0.2064]
[1750877178354,6.14122788,2417.4,2416.9,0.2064]
[1750877178517,6.14122788,2417.4,2416.9,4.34385119]
[1750877178922,6.14122788,2417.4,2416.9,0.2064]
[1750877178923,4.13689432,2417.3,2416.9,0.2064]
[1750877179263,4.13689432,2417.3,2416.9,4.34392685]
[1750877179646,4.13689432,2417.3,2416.9,0.2064]
[1750877180150,4.13689432,2417.3,2416.9,4.34392311]
[1750877180458,6.14116032,2417.4,2416.9,5.29003513]
[1750877180645,4.13687775,2417.3,2416.9,1.15251202]
[1750877180850,1.798,2417.4,2416.7,0.20658596]
[1750877181052,0.2064,2417.1,2416.7,4.34440721]
[1750877182053,0.2064,2417.1,2416.9,4.13752485]
[1750877182225,0.2064,2417.1,2416.8,4.13763505]
[1750877182429,0.2064,2417.1,2416.7,4.34438016]
[1750877182628,0.2064,2417.1,2416.8,0.86887701]
[1750877182961,0.2064,2417.1,2416.8,5.00656641]
[1750877183558,0.2064,2417.1,2416.9,4.13741297]
[1750877183756,0.2064,2417.1,2416.8,5.00648347]
[1750877184064,0.2064,2417.1,2416.8,0.86887701]
[1750877184362,4.34362065,2417.1,2416.7,0.20658596]
[1750877184932,4.13739351,2417.0,2416.7,0.20658596]
[1750877185345,0.2064,2417.1,2416.9,4.13745588]
[1750877185561,0.2064,2417.1,2416.7,0.20658596]
[1750877185858,0.2064,2417.1,2416.7,4.34437198]
[1750877186058,0.2064,2417.1,2416.8,0.4550772]
[1750877186445,4.34359724,2417.1,2416.8,0.4550772]
[1750877188358,0.2064,2417.1,2416.8,0.4550772]
[1750877188925,0.2064,2417.1,2416.8,4.59269428]
[1750877189123,0.2064,2417.1,2416.9,4.13752728]
[1750877189358,0.2064,2417.1,2417.0,4.13736036]
[1750877189527,10.3577,2417.7,2417.4,4.13651476]
[1750877189730,6.90027068,2417.7,2417.2,4.13693417]
[1750877190041,6.90027068,2417.7,2417.3,4.34316317]
[1750877190042,2.7641,2417.7,2417.3,4.34316317]
[1750877191144,2.0054,2417.7,2417.5,4.13649333]
[1750877191339,2.0054,2417.7,2417.5,0.92675565]
[1750877191668,1.799,2418.0,2417.9,4.13581928]
[1750877192290,1.799,2418.0,2417.7,4.3424859]
[1750877192580,1.799,2418.0,2417.7,4.34245225]
[1750877192872,1.799,2418.0,2417.9,4.13582033]
[1750877193431,1.799,2418.0,2417.8,4.13591431]
[1750877196468,1.799,2418.0,2417.9,4.13582033]
[1750877196867,1.799,2418.0,2417.9,5.7474392]
[1750877197056,1.799,2418.0,2417.9,5.9538392]
[1750877198479,1.799,2418.0,2417.9,5.10602033]
[1750877200667,1.799,2418.0,2417.9,4.13582033]
[1750877201239,1.799,2418.0,2417.8,4.13587631]
[1750877201440,1.799,2418.0,2417.8,4.1358672]
[1750877201673,1.799,2418.0,2417.8,4.13591509]
[1750877202472,1.799,2418.0,2417.9,4.13582033]
[1750877203575,1.799,2418.0,2417.9,4.98364096]
[1750877204578,1.799,2418.0,2417.9,5.19004096]
[1750877212791,2.5682,2418.0,2417.9,0.2064]
[1750877213008,0.7692,2417.7,2417.4,0.2064]
[1750877213187,0.7692,2417.7,2416.9,0.7672]
[1750877213365,4.34282516,2417.6,2417.1,4.34358382]
[1750877213566,1.796,2417.5,2417.1,4.34358382]
[1750877213786,1.796,2417.5,2417.2,4.13690142]
[1750877213988,10.0,2417.9,2417.2,4.13690142]
[1750877213989,0.7692,2418.0,2417.8,4.13592361]
[1750877214193,2.0024,2418.0,2417.8,4.13592361]
[1750877214395,2.0024,2418.0,2417.9,4.13582033]
[1750877214776,2.0024,2418.0,2417.7,4.13609561]
[1750877215501,0.2064,2418.0,2417.7,4.13609561]
[1750877215690,2.0024,2418.0,2417.7,4.13609561]
[1750877216773,2.0024,2418.0,2417.6,0.2064]
[1750877216981,1.796,2418.0,2417.8,4.13598861]
[1750877217498,2.07316,2418.0,2417.7,0.2064]
[1750877217718,2.07316,2418.0,2417.4,4.3430165]
[1750877217719,1.0237,2417.8,2417.4,4.3430165]
[1750877218006,1.0237,2417.5,2416.9,0.2064]
[1750877218303,4.95449868,2417.1,2416.9,0.2064]
[1750877218812,0.8173,2417.1,2416.9,0.2064]
[1750877219366,4.95449404,2417.1,2416.9,0.2064]
[1750877219781,0.8173,2417.1,2416.9,0.2064]
[1750877221403,0.8173,2417.1,2416.9,4.34388416]
[1750877221606,0.2064,2417.2,2416.9,4.34388416]
[1750877221816,1.797,2417.2,2417.0,4.13725399]
[1750877222005,1.797,2417.2,2416.9,5.22295239]
[1750877223306,1.797,2417.2,2416.9,0.2064]
[1750877223504,0.2064,2417.4,2417.1,4.13708166]
[1750877223800,0.2064,2417.4,2417.0,4.13736036]
[1750877224004,1.797,2417.6,2417.0,9.41539354]
[1750877224175,0.2064,2417.8,2417.4,0.8008]
[1750877224371,0.8173,2417.9,2417.8,4.13599139]
[1750877224372,1.797,2417.9,2417.8,4.13599139]
[1750877225977,1.797,2417.9,2417.7,4.34247424]
[1750877226308,1.797,2417.9,2417.7,0.2064]
[1750877227194,0.7682,2417.8,2417.4,4.93740927]
[1750877227404,0.9746,2417.8,2417.5,4.13648631]
[1750877228389,0.2064,2417.8,2417.5,4.13648631]
[1750877228698,2.0034,2417.9,2417.6,4.1361845]
[1750877229627,2.0034,2417.9,2417.5,0.2064]
[1750877229786,4.13610501,2417.8,2417.3,4.13678627]
[1750877229990,4.13610501,2417.8,2417.3,4.34318627]
[1750877229991,4.34250501,2417.8,2417.3,4.34318627]
[1750877230201,0.8078,2417.7,2417.3,4.34318627]
[1750877230402,4.94397446,2417.7,2417.3,0.2064]
[1750877230602,0.8078,2417.7,2417.3,4.34316207]
[1750877231591,0.2064,2417.8,2417.3,1.12952003]
[1750877231922,1.797,2417.8,2417.6,5.124138]
[1750877232225,1.797,2417.8,2417.6,0.2064]
[1750877232435,1.797,2417.8,2417.4,4.91808783]
[1750877232607,1.797,2417.8,2417.4,5.12448783]
[1750877232947,1.797,2417.8,2417.5,4.13648069]
[1750877233096,1.797,2417.8,2417.6,4.13631155]
[1750877234222,1.797,2417.8,2417.5,4.13640943]
[1750877235439,1.797,2417.8,2417.5,4.13641007]
[1750877235936,1.797,2417.8,2417.4,0.2064]
[1750877236095,0.7691,2417.7,2417.4,0.2064]
[1750877236288,0.7691,2417.7,2417.0,4.13725034]
[1750877236289,0.2064,2417.6,2417.0,4.13725034]
[1750877236536,0.2064,2417.4,2417.0,4.34365034]
[1750877236690,1.795,2417.3,2417.0,0.2064]
[1750877237224,6.70097462,2417.3,2417.0,0.2064]
[1750877238092,2.5641,2417.3,2417.0,4.34375051]
[1750877239225,2.5641,2417.3,2417.1,4.13718458]
[1750877240012,0.2064,2417.4,2417.2,4.13701803]
[1750877240214,1.795,2417.5,2417.2,4.13701803]
[1750877240512,1.795,2417.5,2417.2,4.34341803]
[1750877240719,1.795,2417.5,2417.1,4.13710128]
[1750877240920,0.2064,2417.4,2417.1,4.13710128]
[1750877241424,0.2064,2417.4,2417.2,4.1370154]
[1750877242326,0.2064,2417.4,2417.1,4.13710034]
[1750877242524,0.2064,2417.4,2417.0,4.34367479]
[1750877242826,4.34316572,2417.4,2417.0,0.2064]
[1750877243503,4.13717931,2417.2,2416.7,1.13228321]
[1750877243818,0.2064,2417.2,2416.8,4.13769807]
[1750877244591,4.34354849,2417.2,2416.7,4.65414839]
[1750877244826,4.34354849,2417.2,2416.8,4.13770167]
[1750877245024,0.2064,2417.2,2416.8,4.13761183]
[1750877245216,4.34342028,2417.2,2416.8,4.13761183]
[1750877245411,0.2064,2417.2,2416.8,4.13761183]
[1750877246228,0.2064,2417.2,2416.9,4.13737965]
[1750877248626,0.2064,2417.2,2416.8,5.01678584]
[1750877248832,0.2064,2417.2,2416.8,4.13760924]
[1750877249028,4.34342266,2417.2,2416.8,4.13760924]
[1750877249531,0.2064,2417.2,2416.8,4.13760924]
[1750877249830,0.2064,2417.2,2416.8,4.13763153]
[1750877250230,0.2064,2417.2,2416.9,4.13751548]
[1750877250731,0.2064,2417.2,2416.9,4.13743736]
[1750877250936,0.2064,2417.2,2416.7,4.55079897]
[1750877251536,0.2064,2417.2,2416.7,0.41298596]
[1750877251837,4.34344051,2417.2,2416.7,4.55072642]
[1750877252211,0.2064,2417.2,2416.8,4.13769602]
[1750877253148,0.2064,2417.2,2416.9,4.13738939]
[1750877253434,0.2064,2417.2,2417.0,4.1372069]
[1750877254009,0.2064,2417.2,2416.9,4.13745091]
[1750877254210,1.027,2417.3,2416.9,5.21265714]
[1750877255237,1.027,2417.3,2417.0,4.13727325]
[1750877255447,0.2064,2417.3,2417.0,4.91338741]
[1750877255814,0.2064,2417.3,2417.0,0.7761]
[1750877256337,0.2064,2417.3,2417.2,4.13701803]
[1750877256542,1.795,2417.5,2417.3,4.13680082]
[1750877256746,1.795,2417.5,2417.3,4.13681694]
[1750877257746,1.795,2417.5,2417.2,5.72036404]
[1750877258314,1.795,2417.5,2417.3,4.13679977]
[1750877258513,1.795,2417.5,2417.2,5.7203584]
[1750877259141,1.795,2417.5,2417.3,4.13676668]
[1750877259641,1.795,2417.5,2417.4,4.13667576]
[1750877261146,1.795,2417.5,2417.3,1.00637213]
[1750877261353,1.795,2417.5,2417.3,5.14313841]
[1750877262037,1.795,2417.5,2417.1,4.34353453]
[1750877262247,5.9315392,2417.5,2417.1,0.2064]
[1750877262550,0.2064,2417.3,2416.9,4.13743903]
[1750877263248,4.13694291,2417.3,2416.8,4.13758156]
[1750877263544,0.2064,2417.1,2416.7,0.41298596]
[1750877263736,6.70510095,2417.0,2416.7,0.41298596]
[1750877263936,4.13770274,2416.8,2416.7,0.41298596]
[1750877264112,0.2064,2416.7,2416.2,4.13865029]
[1750877264316,0.2064,2416.7,2416.1,4.34529121]
[1750877264317,0.2064,2416.5,2416.3,4.13854632]
[1750877264512,2.0014,2416.5,2416.3,4.13854632]
[1750877264938,2.0014,2416.5,2416.2,4.13863366]
[1750877265317,2.774,2416.5,2416.1,4.34523249]
[1750877265561,2.774,2416.5,2416.2,4.13871108]
[1750877265956,2.774,2416.5,2416.3,4.13854452]
[1750877266146,2.774,2416.5,2416.1,4.34520848]
[1750877266962,8.01728784,2416.5,2416.1,0.2064]
[1750877267330,7.81083812,2416.5,2416.0,4.13900513]
[1750877267642,0.2064,2416.2,2416.0,4.13900513]
[1750877268466,0.2064,2416.2,2416.1,4.13890153]
[1750877269675,0.2064,2416.2,2416.0,4.13899421]
[1750877270165,0.2064,2416.2,2416.1,4.13890153]
[1750877272558,0.2064,2416.2,2416.0,4.1389789]
[1750877273273,0.2064,2416.2,2415.9,4.65000069]
[1750877274064,0.2064,2416.2,2416.1,4.13890153]
[1750877274781,0.2064,2416.2,2416.0,4.13899646]
[1750877275070,0.2064,2416.2,2415.9,4.65000249]
[1750877275441,0.2064,2416.2,2415.9,4.13914855]
[1750877275741,0.8317,2416.0,2415.4,0.20672261]
[1750877276059,4.13941551,2415.8,2415.4,0.20672261]
[1750877276367,0.2064,2415.7,2415.4,4.34680015]
[1750877277469,0.2064,2415.7,2415.4,0.20672261]
[1750877277775,0.2064,2415.5,2415.4,0.20672261]
[1750877278868,0.2064,2415.5,2415.0,4.34712331]
[1750877278869,0.2064,2415.5,2415.2,4.14035933]